Cogmind - Beta 14 @@@ ROGUE MODE // 2025.03.29 @ 00:12:50 Player: SirusTheMadDJ Result: Destroyed by Y-45 Defender with Heavy Assault Rifle Performance ------------- Evolutions (1) 500 Regions Visited (3) 600 Robots Destroyed (92) 460 Value Destroyed (2245) 2245 Prototype IDs (5) 100 Alien Tech Used (0) 0 Bonus (356) 356 TOTAL SCORE: 4261 Bonus ------- High Alert Combat Kills 356 Cogmind --------- Core Integrity 0/400 Matter 172/300 Energy 265/265 System Corruption 4% Temperature Cool (29) Movement Treading (240) Ox1 Location -9/Storage Parts ------- > --- POWER (1) -------- Improved Ion Engine > --- PROPULSION (3) --- Light Treads Light Treads > --- UTILITY (3) ------ High-capacity Storage Unit Signal Interpreter Hacking Suite > --- WEAPON (2) ------- Advanced Beam Cannon Grenade Launcher > --- INVENTORY (20) --- Weight Redist. System Machine Analyzer Transport Network Coupler Hacking Suite Hacking Suite High-powered Tractor Beam Advanced Beam Cannon Improved Assault Rifle Improved Light Cannon Improved Light Cannon Peak State ------------ > --- POWER ------------ Improved Ion Engine > --- PROPULSION ------- Improved Flight Unit Improved Flight Unit Improved Flight Unit > --- UTILITY ---------- Small Storage Unit Signal Interpreter Hacking Suite > --- WEAPON ----------- Improved EM Shotgun Advanced Beam Cannon > --- INVENTORY -------- Ion Engine Weight Redist. System Hacking Suite Hacking Suite High-powered Tractor Beam Heavy Assault Rifle Grenade Launcher [Rating: 23] Favorites ----------- Power Improved Ion Engine Engine Improved Ion Engine Propulsion Improved Treads Treads Improved Treads Leg Aluminum Leg Flight Unit Improved Flight Unit Utility Signal Interpreter Storage High-capacity Storage Unit Processor Signal Interpreter Hackware Hacking Suite Weapon Improved Assault Rifle Energy Gun Improved EM Shotgun Energy Cannon Advanced Beam Cannon Ballistic Gun Improved Assault Rifle Launcher Grenade Launcher Build | -11 -10 -9 -9 ------- Run | Yrd Mat Mat Sto Slots Evolved 2 | . . 2 . Power . | . . . . Propulsion 1 | . . 1 . Utility 1 | . . 1 . Weapon . | . . . . Parts Attached 51 | 6 3 26 16 Power 9 | 1 . 4 4 Engine 9 | 1 . 4 4 Core . | . . . . Reactor . | . . . . Propulsion 20 | 2 2 9 7 Treads 9 | . . 3 6 Leg 8 | 2 2 3 1 Wheel . | . . . . Hover . | . . . . Flight 3 | . . 3 . Utility 6 | 1 1 3 1 Device . | . . . . Storage 3 | 1 . 2 . Processor 1 | . 1 . . Hackware 2 | . . 1 1 Protection . | . . . . Artifact . | . . . . Weapon 16 | 2 . 10 4 Energy Gun 3 | . . 3 . Energy Cannon 3 | . . 2 1 Ballistic Gun 7 | 2 . 3 2 Ballistic Cannon . | . . . . Launcher 3 | . . 2 1 Special Weapon . | . . . . Impact Weapon . | . . . . Slashing Weapon . | . . . . Piercing Weapon . | . . . . Special Melee Weapon . | . . . . Unidentified Prototypes 5 | . . 4 1 Parts Lost 12 | . 2 3 7 Power 4 | . 1 2 1 Propulsion 5 | . . . 5 Utility . | . . . . Weapon 3 | . 1 1 1 Highest Loss Streak 2 | . 1 2 2 To Critical Strikes . | . . . . Average Slot Usage (%) 97 | . 94 98 96 Engine 10 | . 10 10 10 Treads 18 | . . 15 29 Leg 9 | . 28 12 . Flight 3 | . . 5 . Storage 11 | . 14 11 11 Processor 11 | . 12 11 11 Hackware 9 | . . 11 11 Energy Gun 3 | . . 6 . Energy Cannon 5 | . . 8 3 Ballistic Gun 12 | . 28 6 16 Peak Build Rating 23 | 6 7 23 21 Average Rating 16 | 4 6 18 17 On Entrance 7 | . 6 6 19 Naked Turns . | . . . . Heaviest Build 54 | 13 13 53 54 Greatest Support 69 | 20 20 69 69 Greatest Overweight (x) 2 | . . 2 2 Average Overweight (x) . | . . . . Largest Inventory Capacity 20 | 8 8 20 20 Average Capacity 14 | 7 8 11 20 Most Carried 12 | . 7 10 12 Average Carried 8 | . 2 7 10 Final Capacity 20 | 8 8 20 20 Final Carried 10 | . 7 9 10 Class Distribution -------------------- 50% | Scavenger-Mutant 49% | Mutant Dominant Class ---------------- Mutant | -10/Materials Scavenger-Mutant | -9/Materials Scavenger-Mutant | -9/Storage Resources | -11 -10 -9 -9 ----------- Run | Yrd Mat Mat Sto Matter Collected 1536 | 184 117 484 751 Remotely . | . . . . Salvage Created 3014 | . 259 1376 1379 Parts 209 | . 15 94 100 Haulers Intercepted 9 | . 1 3 5 Recyclers Shooed 5 | . . . 5 Parts Field Recycled . | . . . . Retrieved Matter . | . . . . Parts Self-Destructed . | . . . . Prevented . | . . . . Kills | -11 -10 -9 -9 ------- Run | Yrd Mat Mat Sto Combat Hostiles Destroyed 61 | . 6 30 25 Guns 34 | . 6 7 21 Cannons 16 | . . 14 2 AOE 11 | . . 9 2 Classes Destroyed 10 | . 4 5 1 Worker 3 | . . 3 . Builder 3 | . . . 3 Tunneler 1 | . . 1 . Hauler 9 | . 1 3 5 Mechanic 2 | . . 1 1 Operator 6 | . 1 2 3 Watcher 7 | . . 5 2 Swarmer 20 | . 3 10 7 Grunt 22 | . 3 11 8 Sentry 19 | . . 9 10 Best Kill Streak 6 | . 5 6 6 Combat Bots Only 5 | . 5 4 4 Max Kills in Single Turn 4 | . 2 4 2 Gunslinging 1 | . 1 . 1 Exploded 3 | . . 3 1 Melee . | . . . . Uniques/NPCs Destroyed . | . . . . Combat | -11 -10 -9 -9 -------- Run | Yrd Mat Mat Sto Hostile Shots Fired 352 | . 83 130 139 Missed 97 | . 24 32 41 Damage Taken 3152 | . 621 1261 1270 Core 588 | . 174 196 218 Absorbed by Shields . | . . . . Regen/Repaired (Parts) 52 | . . . 52 Core Remaining (%) 65 | 100 30 . . Volleys Fired 238 | . 32 100 106 Largest 2 | . 2 2 2 Hottest 128 | . 40 128 98 Shots Fired 427 | . 64 162 201 Gun 319 | . 64 76 179 Cannon 84 | . . 76 8 Launcher 24 | . . 10 14 Special . | . . . . Kinetic 279 | . 64 36 179 Thermal 84 | . . 76 8 Explosive 24 | . . 10 14 Electromagnetic 40 | . . 40 . Robot Hit Streak 15 | . 5 11 15 Robot Miss Streak 7 | . 7 5 5 Penetration Max . | . . . . Secondary Targets 6 | . 1 . 5 Max Gunslinging Chain 1 | . 1 . 1 Shots Hit Robots 271 | . 33 107 131 Core Hits 147 | . 16 72 59 Critical Kills 2 | . . 1 1 Critical Parts Destroyed 3 | . 1 1 1 Critical Strikes 5 | . 1 2 2 Destroy 5 | . 1 2 2 Melee Attacks . | . . . . Impact . | . . . . Slashing . | . . . . Piercing . | . . . . Sneak Attacks . | . . . . Combat Hostiles . | . . . . Follow-up Attacks . | . . . . Damage Inflicted 5246 | . 363 2630 2253 Guns 3071 | . 363 760 1948 Cannons 1094 | . . 1013 81 Explosions 1053 | . . 845 208 Melee . | . . . . Ramming 28 | . . 12 16 Kinetic 2575 | . 363 264 1948 Thermal 1398 | . . 1317 81 Explosive 653 | . . 445 208 Electromagnetic 592 | . . 592 . Impact . | . . . . Slashing . | . . . . Piercing . | . . . . Highest Corruption 4 | . . . 4 Average Corruption 2 | . . . 2 Corruption Purged . | . . . . Corruption Blocked . | . . . . Effects 17 | . . . 17 Message Errors 2 | . . . 2 Matter Fused 4 | . . . 4 Heat Flow Errors 2 | . . . 2 Energy Discharges 2 | . . . 2 Parts Rejected 1 | . . . 1 Data Loss (minor) 4 | . . . 4 Alerts 1 | . . . 1 Weapon Failures 1 | . . . 1 Overload Shots . | . . . . Overflow Damage 52 | . . 52 . Projectiles 16 | . . 16 . Explosions 36 | . . 36 . Melee . | . . . . Knockbacks . | . . . . Impact . | . . . . Kinetic . | . . . . Secondary . | . . . . Self-Inflicted Damage 179 | . . 161 18 Shots 5 | . . 4 1 Rammed 5 | . . 3 2 Targets Rammed 7 | . . 5 2 Kicked 2 | . . 2 . Crushed . | . . . . Highest Temperature 340 | . 27 340 239 Average Temperature 68 | . 9 78 44 Received Heat Transfer 1038 | . 240 375 423 Siege Activations . | . . . . Robots Corrupted . | . . . . Combat Hostiles . | . . . . Parts Fried 2 | . . 2 . Impact Corruptions . | . . . . Robots Melted . | . . . . Combat Hostiles . | . . . . Parts Melted 7 | . . 7 . Heat Transferred 2248 | . . 2100 148 Parts Sabotaged . | . . . . Parts Stolen . | . . . . Parts Stripped . | . . . . Power Chain Reactions 3 | . . 3 . Alert | -11 -10 -9 -9 ------- Run | Yrd Mat Mat Sto Peak Influence 817 | . 167 786 817 Initial 304 | . . 66 304 Average 435 | . 37 422 587 Maximum Alert Level 3 | . . 3 3 Low Security (%) 23 | 100 100 21 . Level 1 21 | . . 30 15 Level 2 30 | . . 30 41 Level 3 24 | . . 17 42 Level 4 . | . . . . Level 5 . | . . . . High Security . | . . . . Max Security . | . . . . Squads Dispatched 8 | . 2 3 3 Investigation 2 | . . . 2 Extermination . | . . . . Reinforcement 5 | . 2 2 1 Assault 1 | . . 1 . Garrison . | . . . . Intercept . | . . . . Searches Triggered . | . . . . Construction Impeded . | . . . . Haulers Reinforced . | . . . . Active Scanning Responses . | . . . . Cargo Convoy Interrupts . | . . . . Stealth | -11 -10 -9 -9 --------- Run | Yrd Mat Mat Sto Distress Signals 8 | . 1 4 3 Communications Jammed . | . . . . Distress Signals . | . . . . Times Spotted 98 | . 11 49 38 Peak Tracking Total 6 | . 6 5 6 Tactical Retreats 4 | . 1 1 2 Traps | -11 -10 -9 -9 ------- Run | Yrd Mat Mat Sto Traps Triggered 4 | . . . 4 Indirectly . | . . . . Trap Hack Attempts . | . . . . Triggered . | . . . . Disarmed . | . . . . Reprogrammed . | . . . . Reused . | . . . . Traps Extracted . | . . . . Installed . | . . . . Triggered . | . . . . Machines | -11 -10 -9 -9 ---------- Run | Yrd Mat Mat Sto Machines Disabled 10 | . . 9 1 Max in Single Turn 2 | . . 2 1 Machines Repaired . | . . . . Machines Dismantled . | . . . . Machines Sabotaged . | . . . . Overloaded Fab Kills . | . . . . Hacking | -11 -10 -9 -9 --------- Run | Yrd Mat Mat Sto Machines Accessed 10 | . . 2 8 Terminals 8 | . . 2 6 Fabricators . | . . . . Repair Stations 1 | . . . 1 Recycling Units 1 | . . . 1 Scanalyzers . | . . . . Garrison Access . | . . . . Total Hacks 26 | . . 8 18 Successful 18 | . . 5 13 Failed 8 | . . 3 5 Catastrophic 1 | . . 1 . Database Lockouts . | . . . . Manual 1 | . . . 1 Terminals 22 | . . 8 14 Fabricators . | . . . . Repair Stations 2 | . . . 2 Recycling Units 2 | . . . 2 Scanalyzers . | . . . . Garrison Access . | . . . . Terminal Hacks 16 | . . 5 11 Record 6 | . . 2 4 Open Door 2 | . . . 2 Emergency Access Points 1 | . . 1 . Dispatch Records 1 | . . 1 . Security Status 1 | . . . 1 Transport Status 1 | . . . 1 Reinforcement Status 1 | . . . 1 Recall Reinforcements 2 | . . 1 1 Zone Layout 1 | . . . 1 Fabricator Hacks . | . . . . Repair Station Hacks 2 | . . . 2 Scan Component 1 | . . . 1 Repair 1 | . . . 1 Recycling Unit Hacks . | . . . . Scanalyzer . | . . . . Garrison Access Hacks . | . . . . Unauthorized Hacks . | . . . . Terminals . | . . . . Fabricators . | . . . . Repair Stations . | . . . . Recycling Units . | . . . . Scanalyzers . | . . . . Garrison Access . | . . . . Data Cores Recovered 2 | . . . 2 Used 2 | . . . 2 Hacking Detections 7 | . . 2 5 Full Trace Events 2 | . . . 2 Feedback Events . | . . . . Feedback Blocked . | . . . . Robot Schematics Acquired . | . . . . Robots Built . | . . . . Authchips . | . . . . Time . | . . . . Total Robot Build Rating . | . . . . Part Schematics Acquired . | . . . . Parts Built . | . . . . Authchips . | . . . . Time . | . . . . Total Part Build Rating . | . . . . Parts Repaired 1 | . . . 1 Time 26 | . . . 26 Parts Recycled . | . . . . Recycled Matter . | . . . . Retrieved Matter . | . . . . Retrieved Components . | . . . . Parts Scanalyzed . | . . . . Part Schematics Acquired . | . . . . Parts Damaged . | . . . . Bothacking | -11 -10 -9 -9 ------------ Run | Yrd Mat Mat Sto Used RIF Installer . | . . . . Robots Hacked . | . . . . Non-combat . | . . . . Combat . | . . . . Robot Hacks Applied . | . . . . Relay Couplers Released . | . . . . Fabnet Peak Effective % . | . . . . Robots Rewired . | . . . . Allies Hacked . | . . . . Hacks Repelled . | . . . . Allies | -11 -10 -9 -9 -------- Run | Yrd Mat Mat Sto Total Allies . | . . . . Largest Group . | . . . . Highest-Rated Group . | . . . . Highest-Rated Ally . | . . . . Total Orders . | . . . . Ally Attacks . | . . . . Total Damage . | . . . . Kills . | . . . . Allies Corrupted . | . . . . Allies Melted . | . . . . Intel | -11 -10 -9 -9 ------- Run | Yrd Mat Mat Sto Robot Analysis Total . | . . . . Derelict Logs Recovered . | . . . . Drone Launches . | . . . . Drone Recoveries . | . . . . Exploration | -11 -10 -9 -9 ------------- Run | Yrd Mat Mat Sto Turns Passed 3757 | 65 358 2035 1299 Spaces Moved 2089 | 49 216 1308 516 Core 3 | 3 . . . Treads 1018 | . . 502 516 Legs 726 | 46 216 464 . Wheels . | . . . . Hover . | . . . . Flight 342 | . . 342 . Fastest Speed 34 | 50 120 34 160 Average Speed 139 | 115 120 127 180 Slowest Speed 320 | 120 120 200 320 Overloaded Moves . | . . . . Propulsion Burnouts . | . . . . Robots Hopped . | . . . . Cave-ins Triggered . | . . . . Exploration Rate (%) 52 | 3 43 91 71 Regions Visited 3 Branch Regions 1 Pre-discovered Areas . | . . . . Known Exits Taken 2 | . 1 1 . Unknown Exits Taken 1 | 1 . . . Scrap Searched . | . . . . Spaces Dug 14 | . . . 14 Terrain Destroyed 170 | . . 96 74 Melee . | . . . . Projectile . | . . . . AOE 170 | . . 96 74 Terrain Rammed . | . . . . Walls Destroyed . | . . . . Machines Disabled . | . . . . Actions | -11 -10 -9 -9 --------- Run | Yrd Mat Mat Sto Total 2499 | 54 255 1512 678 Wait 80 | . . 54 26 Move 2086 | 48 215 1307 516 Hop . | . . . . Pick Up 22 | . 5 10 7 Fast Attach 16 | 6 1 3 6 Attach 8 | . . 5 3 Detach . | . . . . Swap 27 | . 2 18 7 Drop 14 | . . 9 5 Fire 238 | . 32 100 106 Melee . | . . . . Ram . | . . . . Kick 2 | . . 2 . Crush 5 | . . 3 2 Escape Stasis . | . . . . Rewire 1 | . . 1 . Trap . | . . . . Miscellaneous . | . . . . Route ------- -11/Scrapyard -10/Materials (discovered 2 exits: *Mat / [*Min]) -9/Materials (discovered 6 exits: *Mat x3 / *Min / *Sto x2) -9/Storage (discovered 1 exit: [Rec]) History --------- Turn | Location | Event 4 | -11/Scrapyard | Discovered new exit (range 15) 66 | -11/Scrapyard | Entered Materials 203 | -10/Materials | Discovered new exit (range 9) 301 | -10/Materials | Build established: Mutant 385 | -10/Materials | Discovered new exit (range 15) 402 | -10/Materials | Core integrity fell below 50% 422 | -10/Materials | Identified exit to Materials 424 | -10/Materials | Entered another Materials area 424 | -9/Materials | Evolved 2 slots: Propulsion x1, Utility x1 735 | -9/Materials | Discovered new exit (range 5) 910 | -9/Materials | Build established: Scavenger-Mutant 953 | -9/Materials | Discovered new exit (range 10) 1453 | -9/Materials | Build established: Mutant 1538 | -9/Materials | Discovered new exit (range 5) 1545 | -9/Materials | Identified exit to Storage 1618 | -9/Materials | Discovered new exit (range 16) 1648 | -9/Materials | Identified exit to Mines 2016 | -9/Materials | Discovered exit to Storage (range 9) 2024 | -9/Materials | First assault squad dispatched 2263 | -9/Materials | Discovered new exit (range 4) 2268 | -9/Materials | Identified exit to Materials 2414 | -9/Materials | Build established: Scavenger-Mutant 2459 | -9/Materials | Entered Storage 2606 | -9/Storage | Core integrity fell below 50% 2783 | -9/Storage | Build established: Mutant 3043 | -9/Storage | Core integrity fell below 20% 3095 | -9/Storage | Build established: Scavenger-Mutant 3242 | -9/Storage | Repaired Ion Engine 3538 | -9/Storage | Discovered new exit (range 8) 3758 | -9/Storage | Destroyed by Y-45 Defender with Heavy Assault Rifle Last Messages --------------- Acquired Unknown Leg. Identified Aluminum Leg. Dropped Aluminum Leg. The unstable cave ceiling collapses. Dropped Ion Engine. Acquired 4 matter. Acquired 20 matter. U-05 Engineer lays Concrete. U-05 Engineer builds a Wall. U-05 Engineer lays Concrete. U-05 Engineer builds a Wall. System corrupted: Heat flow error (+152). The unstable cave ceiling collapses. U-05 Engineer builds a Wall. U-05 Engineer lays Concrete. U-05 Engineer builds a Wall. U-05 Engineer lays Concrete. U-05 Engineer builds a Wall. Lgt. Treads destroyed. The unstable cave ceiling collapses. Map ----- +----------------------------------------------------+ | | | | | | | | | | | | | ??###????????????????????????????????????????????? | | ### ###??????????????????????????????????????????? | | [! #??????????????????????????????????????????? | | %"""" #??????????????????????????????????????????? | | !"""" #??????????????????????????????????????????? | | """" #??????????????????????????????????????????? | | """" #??????????????????????????????????????????? | | #??????????????????????????????????????????? | | #??????????????????????????????????????????? | | #???????????????##?????????????????????????? | | #######????????????###%###???????????????????????? | | #??????????###????# ! #???????????????????????? | | ###??????### ######" #???????????????????????? | | ##?????# #T #???????????????????????? | | = ####### #" [[[#???????????????????????? | | [##### # # [[[#???????????????????????? | | T # """ # [[ #???????????????????????? | | "" + """ # % #???## ###?????????????? | | #### # """ ##+##### ! ##?????????????? | | ###* ## """ + ! @/ Y #?????????????? | | #####?# ## """ ## ##### """ #?????????????? | | ??????# ## ## #####??""" #???????????????? | | ####### ############ #"""#????" #???????????????? | | #??#%[ # #"R"#??????????????????????? | | #######+##??## # #" "####+#?????????????????? | | ?????? ?????# + #?????????????????? | | ?????? "?????# " " # #?????????????????? | | ?????? "?????# "R" # #?????????????????? | | ????? "?????# """ # """ #?????????????????? | | ????? ?????######## """ #?????????????????? | | ????? ?????????????# """ #?????????????????? | | ????? ??????#####??# ! #?????????????????? | | ????########## #### =%=#?????????????????? | | ????# # !!%* ! #????????????? | | ????# # =######## #????????????? | | ????# """""" # *%#??????? #????????????? | | ????# "????" # =#??????? #????????????? | | ????# "????" + #????????## #????????????? | | ????# """""" # #?????????? #????????????? | | ????# # #??????????? #????????????? | | ????# # #???????????? #????????????? | | ????# # #????????????? ?????????????? | | ???########### #????????????? ?????????????? | | ???# # #???????????????![[?????????????? | +----------------------------------------------------+ Best States ------------- Heat Dissipation 28 Energy Generation 14 Energy Capacity 280 Matter Stores 300 Matter Capacity 300 Sight Range 16 Terrain Scan Density 10 Evasion (%) 63 Recoil Reduction 3 Offensive Hacking 10 Item Schematics ----------------- None Robot Schematics ------------------ None Fabricated ------------ Nothing Alien Tech Used ----------------- None Achievements -------------- Dynamic Key Challenges ------------ None Game ------ Seed OvertunedDroneDeflector Manual? 0 Play Time 00:35:23 Cumulative 9.8 hours Start 2025.03.28 @ 23:36:47 End 2025.03.29 @ 00:12:50 Sessions 1 Manual Loads 0 Difficulty Rogue Special Mode None Game No. 21 Rogue 21 Adventurer 0 Explorer 0 Win Type - Total 0 Types 0/0/0/0/0/0/0/0/0 Lore% 4 Gallery% 15 Achievement% 15 Wizard Run 0 Options --------- Layout 1 ASCII 0 Keyboard 0 Movement Mouse Keybinds 0 Fullscreen 1 Font 24/Smallcaps Map View 50x35 Zoom Use 0% Tactical HUD 0 Map Filters NONE Filters NONE Steam 1 RUN: ff78775f-ce7d-4cd6-abb6-c652301a7226